[Event "GEO-ch 1st League 2021"]
[Site "Tbilisi"]
[Date "2021.04.01"]
[Round "4.9"]
[White "Tsanatsqenishvili, Alexandre"]
[Black "Adamia, Jaba"]
[Result "0-1"]
[ECO "B43"]
[WhiteElo "1702"]
[BlackElo "1899"]
[Annotator "NA RC"]
[PlyCount "64"]
[EventDate "2021.03.29"]
[EventType "swiss"]
[EventCountry "GEO"]
[SourceTitle "playchess.com"]
[Source "ChessBase"]
[SourceQuality "1"]
[TimeControl "5400+30"]

1. e4 {[%emt 0:00:46]} c5 {[%emt 0:00:00]} 2. Nf3 {[%emt 0:00:03]} e6 {[%emt 0:00:00]} 3. d4 {[%emt 0:00:03]} cxd4 {[%emt 0:00:05]} 4. Nxd4 {[%emt 0:00:06]} a6 {[%emt 0:00:12]} 5. Nc3 {[%emt 0:00:10]} Qc7 {[%emt 0:00:34]} 6. g3 {[%emt 0:00:20]} Bb4 {[%emt 0:01:20]} 7. Nde2 {[%emt 0:00:55]} Nf6 {[%emt 0:01:14]} 8. Bg2 {[%emt 0:00:14]} Be7 {[%emt 0:00:52]} 9. O-O {[%emt 0:01:42]} Nc6 {[%emt 0:03:28]} 10. a4 {[%emt 0:04:42] is now debated instead of 10.h3.} O-O {[%emt 0:04:17]} 11. Nf4 {[%emt 0:02:41]} d6 {[%emt 0:06:27]} 12. Nd3 {[%emt 0:01:36]} Rb8 {[%emt 0:14:22] [#]} 13. Bf4 $146 {[%emt 0:24:16]} ({Predecessor:} 13. g4 b5 14. axb5 axb5 15. g5 Nd7 16. f4 b4 17. Ne2 Qb6+ 18. Kh1 b3 19. c3 {1-0 (60) Garcia,G (2510)-Zapata,A (2470) Pensilvania 1998}) 13... Ne5 {[%emt 0:02:16]} 14. Ne2 {[%emt 0:14:32]} b6 {[%emt 0:06:12]} 15. c3 {[%emt 0:03:47]} (15. Ra3 $11) 15... Bb7 {[%emt 0:05:58]} 16. f3 {[%emt 0:00:16]} Rfd8 {[%emt 0:01:14]} 17. Kh1 {[%emt 0:14:43]} (17. Be3 $15) 17... Nxd3 {[%emt 0:14:42]} 18. Qxd3 {[%emt 0:00:16]} e5 {[%emt 0:00:09]} 19. Bg5 {[%emt 0:09:33]} d5 {[%emt 0:00:40]} 20. Qb1 {[%emt 0:04:01]} (20. Bxf6 $17 {is a better defense.} Bxf6 21. Qc2) 20... dxe4 {[%emt 0:07:42]} 21. fxe4 $19 {[%emt 0:00:22]} Nxe4 {[%emt 0:07:51]} 22. Bxe4 {[%emt 0:02:50]} Bxg5 {[%emt 0:00:14]} 23. Ng1 {[%emt 0:00:13]} Qc4 {[%emt 0:03:16]} 24. Bxb7 {[%emt 0:00:27]} Rxb7 {[%emt 0:00:05]} 25. Qf5 {[%emt 0:00:29]} Bf6 {[%emt 0:01:55]} 26. Rfe1 {[%emt 0:04:58]} Qc6+ {[%emt 0:05:17]} 27. Qf3 {[%emt 0:01:33]} Qxf3+ {[%emt 0:01:14]} 28. Nxf3 {[%emt 0:00:02]} Re7 {[%emt 0:00:10]} 29. Rad1 {[%emt 0:00:28]} Rxd1 {[%emt 0:01:19]} 30. Rxd1 {[%emt 0:00:02]} Re6 {[%emt 0:00:44]} 31. Nd2 {[%emt 0:00:30]} Rd6 {[%emt 0:00:16]} 32. h4 {[%emt 0:03:31]} e4 {[%emt 0:00:09]} 0-1

[Event "GEO-ch 1st League 2021"]
[Site "Tbilisi"]
[Date "2021.04.02"]
[Round "5.1"]
[White "Morchiashvili, Bachana"]
[Black "Azaladze, Shota"]
[Result "1/2-1/2"]
[ECO "D14"]
[WhiteElo "2313"]
[BlackElo "2439"]
[Annotator "ChessBase"]
[PlyCount "62"]
[EventDate "2021.03.29"]
[EventType "swiss"]
[EventCountry "GEO"]
[SourceTitle "playchess.com"]
[Source "ChessBase"]
[SourceQuality "1"]
[TimeControl "5400+30"]

1. d4 {[%emt 0:06:57]} d5 {[%emt 0:00:02]} 2. c4 {[%emt 0:00:06]} c6 {[%emt 0:00:05]} 3. Nf3 {[%emt 0:00:04]} Nf6 {[%emt 0:00:06]} 4. cxd5 {[%emt 0:00:04]} cxd5 {[%emt 0:00:03]} 5. Nc3 {[%emt 0:00:04]} Nc6 {[%emt 0:00:10]} 6. Bf4 {[%emt 0:00:05]} Bf5 {[%emt 0:00:09]} 7. e3 {[%emt 0:00:12]} e6 {[%emt 0:00:05]} 8. Bd3 {[%emt 0:00:06]} Bxd3 {[%emt 0:00:06]} 9. Qxd3 {[%emt 0:00:05]} Bd6 {[%emt 0:00:06]} 10. Bxd6 {[%emt 0:00:10]} Qxd6 {[%emt 0:00:03]} 11. O-O {[%emt 0:00:12]} O-O {[%emt 0:00:07]} 12. Rfc1 {[%emt 0:00:06]} Rfc8 {[%emt 0:00:06]} 13. Ne2 {[%emt 0:00:06]} Ne7 {[%emt 0:00:15]} 14. h3 {[%emt 0:00:07]} a6 {[%emt 0:00:08]} 15. a3 {[%emt 0:00:08]} h6 {[%emt 0:00:07]} 16. Rxc8+ {[%emt 0:00:07]} Rxc8 {[%emt 0:00:02]} 17. Rc1 {[%emt 0:00:08]} Rxc1+ {[%emt 0:00:05]} 18. Nxc1 {[%emt 0:00:03]} Ne4 {[%emt 0:00:07]} 19. Qc2 {[%emt 0:00:16]} Qc6 {[%emt 0:00:03]} 20. Qxc6 {[%emt 0:00:05]} Nxc6 {[%emt 0:00:06]} 21. Nd3 {[%emt 0:00:07]} Kf8 {[%emt 0:00:05]} 22. Kf1 {[%emt 0:00:06]} Ke7 {[%emt 0:00:03]} 23. Ke2 {[%emt 0:00:05]} g5 {[%emt 0:00:16]} 24. Nfe5 {[%emt 0:00:06]} Nxe5 {[%emt 0:00:08]} 25. Nxe5 {[%emt 0:00:05]} f6 {[%emt 0:00:09]} 26. Nd3 {[%emt 0:00:05]} b6 {[%emt 0:00:14]} 27. f3 {[%emt 0:00:05]} Nd6 {[%emt 0:00:03]} 28. b3 {[%emt 0:00:07]} a5 {[%emt 0:00:04]} 29. Kd2 {[%emt 0:00:06]} Kd7 {[%emt 0:00:03]} 30. a4 {[%emt 0:00:08]} Ke7 {[%emt 0:00:03]} 31. g4 {[%emt 0:00:05]} Kd7 {[%emt 0:00:03]} 1/2-1/2

[Event "GEO-ch 1st League 2021"]
[Site "Tbilisi"]
[Date "2021.04.02"]
[Round "5.2"]
[White "Petriashvili, Nikoloz"]
[Black "Lortkipanidze, Nodar"]
[Result "0-1"]
[ECO "B15"]
[WhiteElo "2425"]
[BlackElo "2416"]
[Annotator "ChessBase"]
[PlyCount "88"]
[EventDate "2021.03.29"]
[EventType "swiss"]
[EventCountry "GEO"]
[SourceTitle "playchess.com"]
[Source "ChessBase"]
[SourceQuality "1"]
[TimeControl "5400+30"]

1. e4 {[%emt 0:00:00]} c6 {[%emt 0:02:08]} 2. d4 {[%emt 0:00:00]} d5 {[%emt 0:00:06]} 3. Nc3 {[%emt 0:00:00]} dxe4 {[%emt 0:00:09]} 4. Nxe4 {[%emt 0:00:02]} Nf6 {[%emt 0:00:09]} 5. Nxf6+ {[%emt 0:00:03]} exf6 {[%emt 0:00:05]} 6. c3 {[%emt 0:00:05]} Bd6 {[%emt 0:00:04]} 7. Bd3 {[%emt 0:00:04]} Na6 {[%emt 0:00:09]} 8. Ne2 {[%emt 0:00:52]} Nc7 {[%emt 0:04:55]} 9. O-O {[%emt 0:01:34]} h5 {[%emt 0:01:09]} 10. Re1 {[%emt 0:03:02]} Kf8 {[%emt 0:00:05]} 11. Ng3 {[%emt 0:07:31]} h4 {[%emt 0:02:27]} 12. Nf5 {[%emt 0:01:11]} Bxf5 {[%emt 0:01:23]} 13. Bxf5 {[%emt 0:00:02]} g6 {[%emt 0:00:08]} 14. Bc2 {[%emt 0:01:08]} Kg7 {[%emt 0:02:12]} 15. Qf3 {[%emt 0:00:21]} a5 {[%emt 0:02:07]} 16. a4 {[%emt 0:01:14]} Nd5 {[%emt 0:01:31]} 17. Bb3 {[%emt 0:05:59]} Rh5 {[%emt 0:02:40]} 18. Bxd5 {[%emt 0:09:14]} cxd5 {[%emt 0:00:18]} 19. Qh3 {[%emt 0:06:26]} Rf5 {[%emt 0:03:42]} 20. b3 {[%emt 0:01:57]} Rc8 {[%emt 0:06:23]} 21. Bd2 {[%emt 0:01:03]} Qc7 {[%emt 0:01:38]} 22. Rac1 {[%emt 0:01:31]} Qb6 {[%emt 0:10:47]} 23. Rb1 {[%emt 0:00:23]} Bb8 {[%emt 0:01:30]} 24. Re2 {[%emt 0:03:40]} Rh8 {[%emt 0:02:56]} 25. Ree1 {[%emt 0:04:18]} Qd6 {[%emt 0:03:20]} 26. b4 {[%emt 0:00:35]} axb4 {[%emt 0:02:08]} 27. Rxb4 {[%emt 0:00:44]} Qa6 {[%emt 0:03:30]} 28. Reb1 {[%emt 0:06:20]} Re8 {[%emt 0:11:17]} 29. Be3 {[%emt 0:06:19]} Bf4 {[%emt 0:02:26]} 30. Re1 {[%emt 0:13:21]} Bxe3 {[%emt 0:00:34]} 31. fxe3 {[%emt 0:02:43]} Qd3 {[%emt 0:04:18]} 32. Rxb7 {[%emt 0:00:57]} Qd2 {[%emt 0:00:49]} 33. Rbb1 {[%emt 0:06:09]} Rb8 {[%emt 0:00:53]} 34. Qxh4 {[%emt 0:02:08]} Rxb1 {[%emt 0:02:22]} 35. Rxb1 {[%emt 0:00:02]} Qxe3+ {[%emt 0:00:06]} 36. Kh1 {[%emt 0:00:03]} Qxc3 {[%emt 0:00:33]} 37. h3 {[%emt 0:01:46]} Qc2 {[%emt 0:01:22]} 38. Qe1 {[%emt 0:06:28]} Qxa4 {[%emt 0:00:25]} 39. Qe3 {[%emt 0:00:10]} g5 {[%emt 0:03:19]} 40. Rb7 {[%emt 0:03:16]} Qd1+ {[%emt 0:00:44]} 41. Kh2 {[%emt 0:00:01]} Rf1 {[%emt 0:00:19]} 42. Re7 {[%emt 0:00:22]} Rh1+ {[%emt 0:00:45]} 43. Kg3 {[%emt 0:00:01]} Qh5 {[%emt 0:00:15]} 44. Qf2 {[%emt 0:02:36]} f5 {[%emt 0:00:46]} 0-1

[Event "GEO-ch 1st League 2021"]
[Site "Tbilisi"]
[Date "2021.04.02"]
[Round "5.3"]
[White "Arabidze, Meri"]
[Black "Bagaturov, Giorgi"]
[Result "1-0"]
[ECO "A90"]
[WhiteElo "2437"]
[BlackElo "2431"]
[Annotator "ChessBase"]
[PlyCount "137"]
[EventDate "2021.03.29"]
[EventType "swiss"]
[EventCountry "GEO"]
[SourceTitle "playchess.com"]
[Source "ChessBase"]
[SourceQuality "1"]
[TimeControl "5400+30"]

1. d4 {[%emt 0:00:00]} e6 {[%emt 0:01:04]} 2. c4 {[%emt 0:00:00]} f5 {[%emt 0:00:34]} 3. Nf3 {[%emt 0:00:49]} Nf6 {[%emt 0:00:12]} 4. g3 {[%emt 0:00:37]} d5 {[%emt 0:00:30]} 5. Bg2 {[%emt 0:00:44]} c6 {[%emt 0:00:10]} 6. O-O {[%emt 0:00:45]} Bd6 {[%emt 0:00:19]} 7. Nc3 {[%emt 0:03:07]} O-O {[%emt 0:01:07]} 8. Rb1 {[%emt 0:00:57]} Qe7 {[%emt 0:08:54]} 9. a3 {[%emt 0:02:05]} Nbd7 {[%emt 0:03:44]} 10. Qc2 {[%emt 0:07:23]} Ne4 {[%emt 0:12:09]} 11. b4 {[%emt 0:02:44]} Nxc3 {[%emt 0:00:53]} 12. Qxc3 {[%emt 0:00:05]} Nf6 {[%emt 0:00:17]} 13. Ne5 {[%emt 0:07:45]} Bd7 {[%emt 0:06:47]} 14. Bf4 {[%emt 0:03:34]} Nh5 {[%emt 0:14:56]} 15. Bd2 {[%emt 0:02:24]} Nf6 {[%emt 0:00:32]} 16. Qc1 {[%emt 0:04:29]} Rac8 {[%emt 0:11:57]} 17. a4 {[%emt 0:03:20]} Be8 {[%emt 0:05:19]} 18. Nd3 {[%emt 0:14:36]} Bh5 {[%emt 0:04:30]} 19. Re1 {[%emt 0:05:43]} Rfd8 {[%emt 0:03:57]} 20. c5 {[%emt 0:02:57]} Bb8 {[%emt 0:03:50]} 21. Bf4 {[%emt 0:00:20]} Bxf4 {[%emt 0:06:02]} 22. Qxf4 {[%emt 0:00:20]} a6 {[%emt 0:02:37]} 23. Rb2 {[%emt 0:01:33]} Ra8 {[%emt 0:05:09]} 24. Bf1 {[%emt 0:03:14]} Ne4 {[%emt 0:01:25]} 25. f3 {[%emt 0:01:46]} Nf6 {[%emt 0:00:51]} 26. Reb1 {[%emt 0:02:34]} Be8 {[%emt 0:00:23]} 27. Qe5 {[%emt 0:03:53]} Nd7 {[%emt 0:01:20]} 28. Qf4 {[%emt 0:03:32]} Nf8 {[%emt 0:00:37]} 29. Ne5 {[%emt 0:00:53]} Qf6 {[%emt 0:02:27]} 30. Qe3 {[%emt 0:01:34]} Nd7 {[%emt 0:01:02]} 31. Nd3 {[%emt 0:01:47]} Nf8 {[%emt 0:00:06]} 32. f4 {[%emt 0:01:02]} Rab8 {[%emt 0:00:46]} 33. Qf2 {[%emt 0:03:00]} h6 {[%emt 0:00:47]} 34. e3 {[%emt 0:00:32]} Ng6 {[%emt 0:00:23]} 35. Be2 {[%emt 0:02:58]} Nf8 {[%emt 0:00:29]} 36. Nc1 {[%emt 0:01:00]} Ra8 {[%emt 0:00:12]} 37. Na2 {[%emt 0:01:23]} Rdb8 {[%emt 0:00:32]} 38. b5 {[%emt 0:01:21]} axb5 {[%emt 0:00:21]} 39. axb5 {[%emt 0:00:01]} Ra5 {[%emt 0:00:19]} 40. bxc6 {[%emt 0:02:33]} Bxc6 {[%emt 0:00:03]} 41. Bb5 {[%emt 0:00:22]} Rc8 {[%emt 0:00:11]} 42. Nc1 {[%emt 0:03:43]} Qd8 {[%emt 0:01:00]} 43. Nd3 {[%emt 0:00:22]} Nd7 {[%emt 0:00:13]} 44. Qd2 {[%emt 0:01:17]} Rca8 {[%emt 0:00:39]} 45. Bxc6 {[%emt 0:02:59]} bxc6 {[%emt 0:00:04]} 46. Rb7 {[%emt 0:00:08]} R5a7 {[%emt 0:00:20]} 47. R1b2 {[%emt 0:03:23]} Qc8 {[%emt 0:00:19]} 48. R7b3 {[%emt 0:00:40]} Kh7 {[%emt 0:00:39]} 49. Kg2 {[%emt 0:00:16]} Ra3 {[%emt 0:00:23]} 50. Rb7 {[%emt 0:01:03]} R3a7 {[%emt 0:00:21]} 51. Rxa7 {[%emt 0:00:47]} Rxa7 {[%emt 0:00:04]} 52. Ra2 {[%emt 0:00:09]} Qa8 {[%emt 0:01:49]} 53. Nb4 {[%emt 0:01:04]} Ra4 {[%emt 0:00:51]} 54. Qc2 {[%emt 0:00:18]} Rxa2 {[%emt 0:00:24]} 55. Qxa2 {[%emt 0:00:01]} Qxa2+ {[%emt 0:01:42]} 56. Nxa2 {[%emt 0:00:01]} Kg8 {[%emt 0:00:07]} 57. Nb4 {[%emt 0:00:36]} Nb8 {[%emt 0:00:04]} 58. Kh3 {[%emt 0:01:25]} Kf7 {[%emt 0:00:11]} 59. Kh4 {[%emt 0:00:13]} g6 {[%emt 0:00:03]} 60. h3 {[%emt 0:00:39]} Ke7 {[%emt 0:00:38]} 61. g4 {[%emt 0:00:14]} Ke8 {[%emt 0:00:31]} 62. Nd3 {[%emt 0:00:58]} Nd7 {[%emt 0:00:05]} 63. Nb4 {[%emt 0:00:04]} Nb8 {[%emt 0:00:05]} 64. Kg3 {[%emt 0:01:11]} Kd8 {[%emt 0:00:33]} 65. gxf5 {[%emt 0:00:37]} exf5 {[%emt 0:00:05]} 66. h4 {[%emt 0:00:17]} h5 {[%emt 0:00:23]} 67. Nd3 {[%emt 0:00:18]} Nd7 {[%emt 0:03:40]} 68. Ne5 {[%emt 0:00:14]} Kc7 {[%emt 0:00:24]} 69. Nxg6 {[%emt 0:00:13]} 1-0

[Event "GEO-ch 1st League 2021"]
[Site "Tbilisi"]
[Date "2021.04.02"]
[Round "5.4"]
[White "Adamia, Jaba"]
[Black "Akhvlediani, Irakli"]
[Result "0-1"]
[ECO "D02"]
[WhiteElo "1899"]
[BlackElo "2355"]
[Annotator "ChessBase"]
[PlyCount "92"]
[EventDate "2021.03.29"]
[EventType "swiss"]
[EventCountry "GEO"]
[SourceTitle "playchess.com"]
[Source "ChessBase"]
[SourceQuality "1"]
[TimeControl "5400+30"]

1. Nf3 {[%emt 0:00:00]} c5 {[%emt 0:03:54]} 2. g3 {[%emt 0:05:48]} d5 {[%emt 0:00:14]} 3. d4 {[%emt 0:03:05]} cxd4 {[%emt 0:00:08]} 4. Nxd4 {[%emt 0:00:23]} e5 {[%emt 0:00:11]} 5. Nb3 {[%emt 0:00:14]} Nf6 {[%emt 0:04:43]} 6. Bg2 {[%emt 0:01:16]} Be6 {[%emt 0:00:50]} 7. c4 {[%emt 0:09:09]} Nc6 {[%emt 0:00:27]} 8. cxd5 {[%emt 0:01:35]} Bxd5 {[%emt 0:00:32]} 9. O-O {[%emt 1:13:00]} Bxg2 {[%emt 0:01:12]} 10. Kxg2 {[%emt 0:00:00]} h6 {[%emt 0:02:21]} 11. Be3 {[%emt 0:00:00]} Qc7 {[%emt 0:16:25]} 12. Nc3 {[%emt 0:00:00]} Rd8 {[%emt 0:00:07]} 13. Nb5 {[%emt 0:00:00]} Qc8 {[%emt 0:02:00]} 14. Qc1 {[%emt 0:00:00]} a6 {[%emt 0:03:12]} 15. Na7 {[%emt 0:00:00]} Nxa7 {[%emt 0:00:05]} 16. Bxa7 {[%emt 0:00:00]} Qe6 {[%emt 0:01:02]} 17. Rd1 {[%emt 0:00:00]} Rxd1 {[%emt 0:01:17]} 18. Qxd1 {[%emt 0:00:00]} Be7 {[%emt 0:02:51]} 19. Rc1 {[%emt 0:00:00]} O-O {[%emt 0:00:32]} 20. Bc5 {[%emt 0:00:00]} Rd8 {[%emt 0:00:29]} 21. Qe1 {[%emt 0:00:00]} Bxc5 {[%emt 0:08:55]} 22. Rxc5 {[%emt 0:00:00]} Ne4 {[%emt 0:01:37]} 23. Rc2 {[%emt 0:00:00]} Qf5 {[%emt 0:03:25]} 24. f3 {[%emt 0:00:00]} Ng5 {[%emt 0:01:07]} 25. Rd2 {[%emt 0:00:00]} Rc8 {[%emt 0:02:04]} 26. Qd1 {[%emt 0:00:00]} e4 {[%emt 0:05:59]} 27. Rd8+ {[%emt 0:00:00]} Rxd8 {[%emt 0:00:09]} 28. Qxd8+ {[%emt 0:00:00]} Kh7 {[%emt 0:00:02]} 29. Qd1 {[%emt 0:00:00]} h5 {[%emt 0:01:01]} 30. Nd2 {[%emt 0:00:05]} h4 {[%emt 0:04:33]} 31. gxh4 {[%emt 0:03:41]} Qh3+ {[%emt 0:00:06]} 32. Kh1 {[%emt 0:01:22]} Qxh4 {[%emt 0:00:25]} 33. Nxe4 {[%emt 0:01:08]} Nxe4 {[%emt 0:00:27]} 34. Qb1 {[%emt 0:00:54]} Kh6 {[%emt 0:06:32]} 35. fxe4 {[%emt 0:01:23]} Qf2 {[%emt 0:00:05]} 36. Qd1 {[%emt 0:01:04]} f6 {[%emt 0:02:43]} 37. e5 {[%emt 0:03:16]} fxe5 {[%emt 0:00:01]} 38. Qd6+ {[%emt 0:00:25]} g6 {[%emt 0:00:16]} 39. Qd2+ {[%emt 0:01:08]} g5 {[%emt 0:03:03]} 40. h3 {[%emt 0:00:22]} e4 {[%emt 0:01:46]} 41. Qd6+ {[%emt 0:00:39]} Kh5 {[%emt 0:00:02]} 42. Qd7 {[%emt 0:00:30]} Qf1+ {[%emt 0:00:06]} 43. Kh2 {[%emt 0:00:02]} Qxe2+ {[%emt 0:00:07]} 44. Kg1 {[%emt 0:00:33]} Kh4 {[%emt 0:00:48]} 45. Qf5 {[%emt 0:00:50]} Qe1+ {[%emt 0:00:07]} 46. Kh2 {[%emt 0:00:08]} Qg3+ {[%emt 0:00:03]} 0-1

[Event "GEO-ch 1st League 2021"]
[Site "Tbilisi"]
[Date "2021.04.02"]
[Round "5.5"]
[White "Qalichava, Akaki"]
[Black "Tsotsonava, Elene"]
[Result "1-0"]
[ECO "B33"]
[WhiteElo "1877"]
[BlackElo "1891"]
[Annotator "NA"]
[PlyCount "69"]
[EventDate "2021.03.29"]
[EventType "swiss"]
[EventCountry "GEO"]
[SourceTitle "playchess.com"]
[Source "ChessBase"]
[SourceQuality "1"]
[TimeControl "5400+30"]

1. e4 {[%emt 0:00:00]} c5 {[%emt 0:00:00]} 2. Nf3 {[%emt 0:00:00]} Nc6 {[%emt 0:00:00]} 3. d4 {[%emt 0:00:00]} cxd4 {[%emt 0:00:00]} 4. Nxd4 {[%emt 0:00:00]} Nf6 {[%emt 0:00:00]} 5. Nc3 {[%emt 0:00:00]} e5 {[%emt 0:00:00]} 6. Ndb5 {[%emt 0:00:00]} d6 {[%emt 0:00:00]} 7. Bg5 {[%emt 0:00:01]} a6 {[%emt 0:00:01]} 8. Na3 {[%emt 0:00:04]} b5 {[%emt 0:00:04]} 9. Nd5 {[%emt 0:00:03]} Be7 {[%emt 0:00:08]} 10. Bxf6 {[%emt 0:00:10]} Bxf6 {[%emt 0:00:03]} 11. c3 {[%emt 0:00:07]} O-O {[%emt 0:00:21]} 12. Nc2 {[%emt 0:00:06]} Bg5 {[%emt 0:00:05]} 13. a4 {[%emt 0:00:10]} bxa4 {[%emt 0:00:08]} 14. Rxa4 {[%emt 0:00:05]} a5 {[%emt 0:00:04]} 15. Bc4 {[%emt 0:00:06]} Rb8 {[%emt 0:00:26]} 16. b3 {[%emt 0:01:59]} Kh8 {[%emt 0:00:11]} 17. Nce3 {[%emt 0:03:00]} g6 {[%emt 0:10:27]} 18. h4 {[%emt 0:02:46]} Bxh4 {[%emt 0:00:06]} 19. g3 {[%emt 0:00:09]} Bg5 {[%emt 0:00:03]} 20. f4 {[%emt 0:00:06]} exf4 {[%emt 0:00:05]} 21. gxf4 {[%emt 0:00:02]} Bh4+ {[%emt 0:00:06]} 22. Kd2 {[%emt 0:00:04]} f5 {[%emt 0:11:34]} 23. Rh2 {[%emt 0:02:56]} g5 {[%emt 0:25:23]} 24. Qh1 {[%emt 0:09:22]} Rb7 {[%emt 0:07:08]} 25. Nxf5 {[%emt 0:06:34]} Bxf5 {[%emt 0:07:04]} 26. exf5 {[%emt 0:00:17]} Rxf5 {[%emt 0:05:51]} 27. Ne3 {[%emt 0:01:31]} Rxf4 {[%emt 0:13:10]} 28. Qxc6 {[%emt 0:00:44]} Rc7 {[%emt 0:07:27]} 29. Qd5 {[%emt 0:03:38]} Rc5 {[%emt 0:03:25]} 30. Qd3 {[%emt 0:02:44]} g4 {[%emt 0:06:12]} 31. Bd5 {[%emt 0:11:05]} g3 {[%emt 0:03:33]} 32. Rxf4 {[%emt 0:00:19]} gxh2 {[%emt 0:00:22]} 33. Qd4+ {[%emt 0:00:04]} Bf6 {[%emt 0:00:05]} 34. Rxf6 {[%emt 0:00:07]} Rxd5 {[%emt 0:00:12]} 35. Rf8# {[%emt 0:00:07]} 1-0

[Event "GEO-ch 1st League 2021"]
[Site "Tbilisi"]
[Date "2021.04.02"]
[Round "5.6"]
[White "Lomaia, Diana"]
[Black "Nigalidze, Gaioz"]
[Result "0-1"]
[ECO "D87"]
[WhiteElo "2111"]
[BlackElo "2480"]
[Annotator "ChessBase"]
[PlyCount "92"]
[EventDate "2021.03.29"]
[EventType "swiss"]
[EventCountry "GEO"]
[SourceTitle "playchess.com"]
[Source "ChessBase"]
[SourceQuality "1"]
[TimeControl "5400+30"]

1. d4 {[%emt 0:00:00]} Nf6 {[%emt 0:00:00]} 2. c4 {[%emt 0:00:00]} g6 {[%emt 0:00:00]} 3. Nc3 {[%emt 0:00:26]} d5 {[%emt 0:00:00]} 4. cxd5 {[%emt 0:02:03]} Nxd5 {[%emt 0:00:00]} 5. e4 {[%emt 0:00:16]} Nxc3 {[%emt 0:00:06]} 6. bxc3 {[%emt 0:00:04]} Bg7 {[%emt 0:00:05]} 7. Bc4 {[%emt 0:01:05]} O-O {[%emt 0:00:09]} 8. Ne2 {[%emt 0:00:57]} c5 {[%emt 0:03:26]} 9. Be3 {[%emt 0:01:25]} Qc7 {[%emt 0:00:25]} 10. Rc1 {[%emt 0:02:37]} Nc6 {[%emt 0:01:21]} 11. O-O {[%emt 0:08:40]} Na5 {[%emt 0:02:34]} 12. Bd3 {[%emt 0:02:10]} b6 {[%emt 0:00:20]} 13. d5 {[%emt 0:13:30]} c4 {[%emt 0:02:51]} 14. Bb1 {[%emt 0:02:04]} e5 {[%emt 0:00:13]} 15. f4 {[%emt 0:05:20]} exf4 {[%emt 0:04:42]} 16. Bxf4 {[%emt 0:01:00]} Qc5+ {[%emt 0:00:40]} 17. Kh1 {[%emt 0:00:44]} Bg4 {[%emt 0:00:19]} 18. h3 {[%emt 0:02:13]} Bxe2 {[%emt 0:02:13]} 19. Qxe2 {[%emt 0:00:07]} Rad8 {[%emt 0:00:41]} 20. Bg5 {[%emt 0:03:13]} Rde8 {[%emt 0:01:09]} 21. Qd2 {[%emt 0:03:35]} Nb7 {[%emt 0:00:27]} 22. Bf6 {[%emt 0:04:02]} Nd6 {[%emt 0:07:18]} 23. Bxg7 {[%emt 0:15:57]} Kxg7 {[%emt 0:00:19]} 24. Qf4 {[%emt 0:00:11]} f6 {[%emt 0:00:24]} 25. Rf3 {[%emt 0:01:56]} Re5 {[%emt 0:01:30]} 26. Rcf1 {[%emt 0:01:09]} Rf7 {[%emt 0:00:25]} 27. Qh4 {[%emt 0:03:18]} Ne8 {[%emt 0:04:42]} 28. Qg3 {[%emt 0:07:09]} Qe7 {[%emt 0:01:11]} 29. Rf5 {[%emt 0:03:41]} Nd6 {[%emt 0:00:06]} 30. Rxe5 {[%emt 0:00:33]} fxe5 {[%emt 0:00:05]} 31. Rxf7+ {[%emt 0:01:51]} Nxf7 {[%emt 0:00:08]} 32. Qe1 {[%emt 0:06:47]} Qa3 {[%emt 0:00:49]} 33. Kh2 {[%emt 0:00:50]} Qb2 {[%emt 0:01:22]} 34. h4 {[%emt 0:02:42]} h5 {[%emt 0:00:31]} 35. Kh3 {[%emt 0:00:25]} b5 {[%emt 0:00:31]} 36. Kh2 {[%emt 0:02:43]} a5 {[%emt 0:00:15]} 37. a3 {[%emt 0:01:54]} Qxa3 {[%emt 0:00:23]} 38. Bc2 {[%emt 0:00:07]} b4 {[%emt 0:00:12]} 39. cxb4 {[%emt 0:00:23]} axb4 {[%emt 0:00:10]} 40. Bd1 {[%emt 0:01:06]} Qc1 {[%emt 0:02:21]} 41. Qxb4 {[%emt 0:00:10]} Qxd1 {[%emt 0:00:24]} 42. Qxc4 {[%emt 0:00:05]} Qg4 {[%emt 0:00:55]} 43. g3 {[%emt 0:00:12]} Qf3 {[%emt 0:00:08]} 44. Qb4 {[%emt 0:02:34]} Qf2+ {[%emt 0:00:15]} 45. Kh1 {[%emt 0:00:24]} Qxg3 {[%emt 0:00:24]} 46. Qe7 {[%emt 0:00:06]} Qe1+ {[%emt 0:00:21]} 0-1

[Event "GEO-ch 1st League 2021"]
[Site "Tbilisi"]
[Date "2021.04.02"]
[Round "5.7"]
[White "Tutisani, Noe"]
[Black "Tskipurishvili, Daviti"]
[Result "1/2-1/2"]
[ECO "B12"]
[WhiteElo "2427"]
[BlackElo "1807"]
[Annotator "ChessBase"]
[PlyCount "78"]
[EventDate "2021.03.29"]
[EventType "swiss"]
[EventCountry "GEO"]
[SourceTitle "playchess.com"]
[Source "ChessBase"]
[SourceQuality "1"]
[TimeControl "5400+30"]

1. e4 {[%emt 0:00:00]} c6 {[%emt 0:06:53]} 2. d4 {[%emt 0:00:00]} d5 {[%emt 0:00:02]} 3. e5 {[%emt 0:00:00]} Bf5 {[%emt 0:00:14]} 4. g4 {[%emt 0:00:00]} Bg6 {[%emt 0:00:13]} 5. e6 {[%emt 0:00:00]} fxe6 {[%emt 0:01:29]} 6. h4 {[%emt 0:00:06]} h6 {[%emt 0:05:22]} 7. Bd3 {[%emt 0:04:30]} Bxd3 {[%emt 0:01:02]} 8. Qxd3 {[%emt 0:00:10]} Qd6 {[%emt 0:01:30]} 9. f4 {[%emt 0:02:05]} Nd7 {[%emt 0:01:48]} 10. Nf3 {[%emt 0:03:11]} O-O-O {[%emt 0:06:03]} 11. Ne5 {[%emt 0:00:05]} Nxe5 {[%emt 0:00:26]} 12. fxe5 {[%emt 0:00:04]} Qc7 {[%emt 0:00:42]} 13. O-O {[%emt 0:00:12]} c5 {[%emt 0:00:37]} 14. c3 {[%emt 0:00:11]} a6 {[%emt 0:01:16]} 15. Kg2 {[%emt 0:00:25]} Kb8 {[%emt 0:02:06]} 16. Be3 {[%emt 0:01:18]} Nf6 {[%emt 0:00:53]} 17. exf6 {[%emt 0:05:17]} exf6 {[%emt 0:00:03]} 18. dxc5 {[%emt 0:02:58]} Bxc5 {[%emt 0:00:07]} 19. Bxc5 {[%emt 0:00:10]} Qxc5 {[%emt 0:00:02]} 20. Nd2 {[%emt 0:00:06]} e5 {[%emt 0:01:26]} 21. Rae1 {[%emt 0:01:04]} Qe7 {[%emt 0:02:30]} 22. h5 {[%emt 0:04:17]} Qd7 {[%emt 0:02:29]} 23. Qg6 {[%emt 0:02:42]} Qb5 {[%emt 0:00:39]} 24. b3 {[%emt 0:01:07]} Qa5 {[%emt 0:00:29]} 25. Qxg7 {[%emt 0:06:06]} Qxc3 {[%emt 0:00:37]} 26. Nf3 {[%emt 0:00:22]} e4 {[%emt 0:04:22]} 27. Nh2 {[%emt 0:00:09]} d4 {[%emt 0:00:18]} 28. Qxf6 {[%emt 0:00:24]} e3 {[%emt 0:00:24]} 29. Kh1 {[%emt 0:03:36]} Ka8 {[%emt 0:03:20]} 30. Qb6 {[%emt 0:04:53]} Rdf8 {[%emt 0:02:59]} 31. Rg1 {[%emt 0:03:14]} Rf2 {[%emt 0:01:00]} 32. Rc1 {[%emt 0:00:05]} Qd3 {[%emt 0:03:14]} 33. Qe6 {[%emt 0:01:11]} Rhf8 {[%emt 0:01:47]} 34. Rc8+ {[%emt 0:04:15]} Rxc8 {[%emt 0:00:27]} 35. Qxc8+ {[%emt 0:00:04]} Ka7 {[%emt 0:00:01]} 36. Qc5+ {[%emt 0:01:10]} Ka8 {[%emt 0:00:30]} 37. Qc8+ {[%emt 0:06:13]} Ka7 {[%emt 0:00:10]} 38. Qc5+ {[%emt 0:00:05]} Ka8 {[%emt 0:00:03]} 39. Qc8+ {[%emt 0:00:04]} Ka7 {[%emt 0:51:57]} 1/2-1/2